bitfinex-derivatives/quotes_ETHF0:USTF0_20230702
["timestamp","ask_amount","ask_price","bid_price","bid_amount"]
[1688320444068,11.0175515,1910.8,1910.5,5.1864]
[1688320444272,11.0175515,1910.8,1910.4,4.66445157]
[1688320444273,6.01628282,1910.6,1910.4,4.66445157]
[1688320444575,2.64391233,1910.5,1910.4,4.66445157]
[1688320444768,3.21139645,1910.5,1910.4,4.66445157]
[1688320445867,3.21139645,1910.5,1910.4,5.09284548]
[1688320446771,3.21139645,1910.5,1910.4,3.72039391]
[1688320447368,3.21139645,1910.5,1910.4,5.09284548]
[1688320447972,3.21139645,1910.5,1910.4,3.72039391]
[1688320451276,3.89251329,1910.5,1910.4,3.72039391]
[1688320451571,3.89251329,1910.5,1910.4,0.42839391]
[1688320451572,4.45423047,1910.5,1910.4,0.42839391]
[1688320451873,7.86028274,1910.5,1910.4,0.08479384]
[1688320452275,7.86028274,1910.5,1910.2,3.70708891]
[1688320452475,2.04207923,1910.3,1910.2,3.70708891]
[1688320452673,2.35613923,1910.3,1910.2,3.70708891]
[1688320452874,3.2103397,1910.3,1910.2,0.41508891]
[1688320453070,1.16826047,1910.3,1910.2,0.41508891]
[1688320453275,1.16826047,1910.3,1910.1,8.5049]
[1688320453572,2.04120227,1910.2,1910.1,8.5049]
[1688320453774,2.35528227,1910.2,1910.1,8.5049]
[1688320453979,2.35528227,1910.2,1910.1,9.21324011]
[1688320454180,0.31408,1910.2,1910.1,10.58569168]
[1688320454371,0.31408,1910.2,1910.1,10.89979168]
[1688320454675,0.31407,1910.3,1910.1,14.20037025]
[1688320454977,0.31407,1910.3,1910.2,8.43817482]
[1688320455180,0.31407,1910.3,1910.2,8.75225482]
[1688320455974,0.31407,1910.3,1910.2,11.36929083]
[1688320456184,0.31407,1910.3,1910.2,11.36928666]
[1688320456377,0.78519,1910.4,1910.2,11.36928666]
[1688320456677,0.78519,1910.4,1910.3,3.89277635]
[1688320458472,1.07190635,1910.4,1910.3,3.292]
[1688320462676,1.07190635,1910.4,1910.3,0.28671635]
[1688320462980,1.07190635,1910.4,1910.3,3.57871635]
[1688320463182,0.78519,1910.4,1910.3,3.57871635]
[1688320463581,2.35526227,1910.5,1910.3,3.89277635]
[1688320463882,0.31406,1910.5,1910.4,7.38133412]
[1688320464669,0.31406,1910.5,1910.4,8.75222482]
[1688320465284,0.31406,1910.5,1910.4,8.86181431]
[1688320465982,0.31406,1910.5,1910.4,7.17687361]
[1688320466586,2.64197862,1910.5,1910.4,6.60938949]
[1688320469786,2.35526227,1910.5,1910.4,6.92343949]
[1688320471287,2.64197862,1910.5,1910.4,6.92343949]
[1688320472693,2.64197862,1910.5,1910.4,8.29433019]
[1688320473280,2.35526227,1910.5,1910.4,8.29433019]
[1688320473894,2.64197862,1910.5,1910.4,8.29433019]
[1688320474089,2.35526227,1910.5,1910.4,8.29433019]
[1688320474492,2.64197862,1910.5,1910.4,8.29433019]
[1688320475484,2.04120227,1910.5,1910.4,8.29433019]
[1688320475685,2.82628227,1910.6,1910.4,10.91117651]
[1688320475887,0.31403,1910.5,1910.4,7.05818647]
[1688320476089,0.31403,1910.5,1910.4,18.96693369]
[1688320476388,0.31403,1910.5,1910.4,17.59604299]
[1688320478795,2.82628227,1910.6,1910.4,17.59604299]
[1688320478993,2.82628227,1910.6,1910.5,4.97788277]
[1688320479198,2.82628227,1910.6,1910.5,5.03987951]
[1688320479598,2.82628227,1910.6,1910.5,3.66802674]
[1688320480494,2.04120227,1910.7,1910.5,13.34055864]
[1688320480690,2.04120227,1910.7,1910.6,8.72580127]
[1688320480892,2.04120227,1910.7,1910.6,9.03982127]
[1688320482493,2.35520227,1910.7,1910.6,9.03982127]
[1688320483894,2.35520227,1910.7,1910.6,7.66802047]
[1688320492705,2.82620227,1910.8,1910.6,7.66802047]
[1688320492898,2.82620227,1910.8,1910.7,3.292]
[1688320493105,2.82620227,1910.8,1910.7,3.606]
[1688320496104,3.11291862,1910.8,1910.7,3.606]
[1688320497003,2.82620227,1910.8,1910.7,3.606]
[1688320500308,3.11291862,1910.8,1910.7,3.606]
[1688320500808,1.07171635,1910.8,1910.7,3.606]
[1688320501004,3.79448865,1910.8,1910.7,3.606]
[1688320515926,1.07171635,1910.8,1910.7,3.606]
[1688320516126,3.79658647,1910.8,1910.7,3.606]
[1688320516626,1.07171635,1910.8,1910.7,3.606]
[1688320517720,1.07171635,1910.8,1910.7,3.89271635]
[1688320517922,1.17671635,1910.8,1910.7,3.292]
[1688320518121,4.58276862,1910.8,1910.7,3.292]
[1688320519321,7.67051635,1910.8,1910.6,3.7106571]
[1688320519524,4.28840432,1910.7,1910.6,3.7106571]
[1688320519824,4.28840432,1910.7,1910.6,3.292]
[1688320522328,4.39340432,1910.7,1910.6,3.292]
[1688320525129,0.98648412,1910.7,1910.6,3.292]
[1688320525324,4.39210387,1910.7,1910.6,3.292]
[1688320525721,4.39211265,1910.7,1910.6,3.292]
[1688320526628,4.28711265,1910.7,1910.6,3.292]
[1688320527826,0.105,1910.6,1910.3,1.3718008]
[1688320528019,0.41907,1910.3,1910.2,1.3718008]
[1688320528225,3.70007,1910.3,1910.1,1.3718008]
[1688320528422,3.70007,1910.3,1910.0,3.442]
[1688320528423,0.3141,1910.1,1910.0,4.8138008]
[1688320528821,2.35672353,1910.1,1910.0,4.8138008]
[1688320529337,0.3141,1910.1,1910.0,3.442]
[1688320529831,2.35672353,1910.1,1910.0,3.442]
[1688320530124,2.35672353,1910.1,1910.0,0.15]
[1688320530624,0.3141,1910.1,1910.0,0.15]
[1688320531029,0.3141,1910.1,1910.0,0.57058196]
[1688320531221,2.35672353,1910.1,1910.0,0.15]
[1688320532431,0.3141,1910.1,1910.0,0.15]
[1688320532728,2.35169869,1910.1,1910.0,0.15]
[1688320534630,0.3141,1910.1,1910.0,0.15]
[1688320539939,0.3141,1910.1,1910.0,0.43671635]
[1688320540340,0.3141,1910.1,1910.0,0.70911473]
[1688320540934,0.3141,1910.1,1910.0,0.42239838]
[1688320543941,0.3141,1910.1,1910.0,0.70911473]
[1688320544142,0.3141,1910.1,1910.0,5.79131473]
[1688320545349,0.3141,1910.1,1910.0,5.50459838]
[1688320546042,0.3141,1910.1,1910.0,5.79131473]
[1688320546647,0.3141,1910.1,1910.0,5.50459838]
[1688320548650,0.3141,1910.1,1910.0,5.79131473]
[1688320551454,0.3141,1910.1,1910.0,9.08331473]
[1688320559358,0.3141,1910.1,1910.0,8.79659838]
[1688320559564,0.3141,1910.1,1910.0,5.50459838]
[1688320559864,0.3141,1910.1,1910.0,5.79131473]
[1688320561355,0.3141,1910.1,1910.0,5.50459838]
[1688320561561,0.3141,1910.1,1910.0,5.79131473]
[1688320562660,0.3141,1910.1,1910.0,5.50459838]
[1688320562859,0.3141,1910.1,1910.0,0.42239838]
[1688320563266,2.35169869,1910.1,1910.0,0.42239838]
[1688320566475,6.32377174,1910.1,1910.0,0.42239838]
[1688320566773,7.00472296,1910.1,1910.0,0.42239838]
[1688320568367,7.00472296,1910.1,1909.6,5.0016]
[1688320568368,0.42699984,1910.0,1909.6,5.0016]
[1688320568570,0.31417,1909.6,1909.3,6.71965708]
[1688320568771,3.60802567,1909.6,1909.3,4.6638008]
[1688320568971,6.07390572,1909.6,1909.3,4.6638008]
[1688320569374,11.06430572,1909.6,1909.4,5.3135]
[1688320569868,3.2078,1909.5,1909.3,3.292]
[1688320570067,0.3142,1909.4,1909.3,3.292]
[1688320570469,0.3142,1909.4,1909.3,4.31325471]
[1688320570673,0.3142,1909.4,1909.3,5.79186619]
[1688320572577,0.3142,1909.4,1909.3,4.42006539]
[1688320572781,0.3142,1909.4,1909.3,2.49986619]
[1688320573185,0.3142,1909.4,1909.3,2.21314984]
[1688320573186,0.74119984,1909.4,1909.3,2.21314984]
[1688320573479,0.74119984,1909.4,1909.3,0.84134904]
[1688320573874,2.78008005,1909.4,1909.3,0.84134904]
[1688320574179,6.07208005,1909.4,1909.3,0.84134904]
[1688320574375,4.03319984,1909.4,1909.3,0.84134904]
[1688320574971,4.03319984,1909.4,1909.3,1.12806539]
[1688320575175,4.03319984,1909.4,1909.3,0.84134904]
[1688320579377,9.25019984,1909.4,1908.9,1.3718008]
[1688320579575,0.31429,1908.9,1908.6,0.21280279]
[1688320579777,3.60434,1908.6,1908.3,6.28856041]
[1688320579978,0.31439,1908.3,1908.1,1.36956041]
[1688320580180,7.03179984,1908.2,1908.0,1.51956041]
[1688320580382,3.395,1908.0,1907.7,2.68179425]
[1688320580590,15.0028,1907.8,1907.3,6.03403707]
[1688320580777,15.0028,1907.8,1907.0,6.80448563]
[1688320580778,3.286,1907.4,1907.0,6.80448563]
[1688320580981,3.286,1907.2,1907.0,6.80448563]
[1688320581180,0.31458,1907.1,1907.0,0.1]
[1688320581374,6.89258,1907.1,1906.2,4.57021774]
[1688320581576,3.292,1906.8,1906.5,5.94104183]
[1688320581782,0.78663,1906.8,1906.7,3.2078]
[1688320581979,0.78655,1907.1,1906.8,11.584]
[1688320582180,0.78641,1907.3,1907.0,6.4998]
[1688320582377,2.30359747,1907.4,1907.2,6.4998]
[1688320582588,2.30359747,1907.4,1907.3,3.60655]
[1688320583081,2.30359747,1907.4,1906.9,0.94377]
[1688320583082,4.23756492,1907.4,1906.9,0.94377]
[1688320583387,3.292,1907.0,1906.5,3.71059178]
[1688320583578,6.4998,1906.6,1906.3,2.73324183]
[1688320583787,6.4998,1906.4,1906.3,2.73324183]
[1688320584080,6.4998,1906.4,1906.3,3.01995818]
[1688320584081,6.9085,1906.4,1906.3,3.01995818]
[1688320584282,3.6007,1906.4,1906.3,3.01995818]
[1688320584490,0.3147,1906.4,1906.3,6.31195818]
[1688320584688,0.3147,1906.4,1906.3,8.12895818]
[1688320584891,0.3147,1906.4,1906.3,8.44367818]
[1688320585079,0.78672,1906.6,1906.3,16.65147818]
[1688320585280,0.78672,1906.6,1906.4,0.56748412]
[1688320585493,8.3318,1906.5,1906.3,2.73324183]
[1688320585784,5.4237,1906.4,1906.3,2.73324183]
[1688320585988,0.3147,1906.4,1906.3,0.28671635]
[1688320586185,0.3147,1906.4,1906.3,5.71143635]
[1688320586487,0.3147,1906.4,1906.3,5.42771635]
[1688320586680,0.31468,1906.8,1906.3,10.74243635]
[1688320586880,3.62851243,1907.1,1906.7,5.45565]
[1688320586881,0.31459,1907.1,1906.7,5.45565]
[1688320587081,0.00786492,1907.4,1907.2,5.0]
[1688320587385,2.35339021,1907.8,1907.6,5.0]
[1688320587681,2.35339021,1907.8,1907.7,9.26440608]
[1688320587985,7.47739021,1907.8,1907.7,0.60111608]
[1688320588186,5.43851,1907.8,1907.7,0.60111608]
[1688320588389,5.43851,1907.8,1907.6,0.00786267]
[1688320588589,0.31449,1907.7,1907.6,0.00786267]
[1688320588892,8.63129,1907.7,1907.6,0.00786267]
[1688320589591,0.105,1907.6,1906.8,8.3488]
[1688320589896,3.6274,1907.0,1906.9,1.02518931]
[1688320590084,8.6634,1907.0,1906.3,15.2024]
[1688320590285,0.31467,1906.6,1906.4,1.36105183]
[1688320590583,5.116,1906.5,1906.4,1.04636183]
[1688320590893,5.42069,1906.5,1906.3,5.0614]
[1688320591090,8.3488,1906.4,1906.0,5.1]
[1688320591389,0.31472,1906.3,1906.0,5.98224412]
[1688320591579,0.31472,1906.3,1906.2,8.3488]
[1688320591785,0.9441,1906.5,1906.3,0.31472]
[1688320591992,0.00786781,1906.7,1906.5,5.31469]
[1688320592193,0.00786781,1906.7,1906.6,8.3488]
[1688320592390,0.31456,1907.3,1906.9,0.31462]
[1688320592593,0.31456,1907.3,1906.8,5.78656]
[1688320592594,0.94358,1907.5,1907.3,0.31455]
[1688320592789,0.94358,1907.5,1907.4,4.08982412]
[1688320592985,0.94351,1907.7,1907.4,14.23082412]
[1688320593191,1.04825,1907.8,1907.6,8.3488]
[1688320593390,0.78597,1908.5,1908.1,5.0]
[1688320593590,0.3222408,1908.4,1908.2,8.64421]
[1688320593893,0.72672228,1908.3,1908.2,9.21169412]
[1688320594191,0.31439,1908.3,1908.0,8.63224]
[1688320594397,0.31439,1908.3,1908.1,0.28671635]
[1688320594595,0.0078608,1908.4,1908.2,5.4554]
[1688320594795,0.3222308,1908.4,1908.3,4.08967412]
[1688320594994,0.3222308,1908.4,1908.3,4.37639047]
[1688320595199,0.3222308,1908.4,1908.3,1.16859047]
[1688320595520,0.3222308,1908.4,1908.0,0.31441]
[1688320595694,0.3222308,1908.4,1908.0,0.88189412]
[1688320596297,8.071,1908.2,1907.6,13.80863186]
[1688320596499,8.38541,1908.1,1907.6,5.32389]
[1688320596693,8.38541,1908.1,1907.7,0.56748412]
[1688320597005,8.38541,1908.1,1907.7,0.88195412]
[1688320597189,0.31441,1908.1,1907.7,0.88195412]
[1688320597509,0.9511108,1908.4,1908.0,13.028]
[1688320597806,0.9511108,1908.4,1908.2,8.033]
[1688320598110,0.3144,1908.2,1907.7,3.52224]
[1688320598307,3.2078,1908.0,1907.7,8.018]
[1688320598603,0.31445,1907.9,1907.6,5.32389]
[1688320598905,0.31445,1907.9,1907.7,0.28671635]
[1688320599196,0.31445,1907.9,1907.7,0.60119635]
[1688320599399,3.2078,1907.8,1907.5,0.00786286]
[1688320599603,3.2078,1907.6,1907.5,0.00786286]
[1688320599806,3.5223,1907.6,1907.5,0.00786286]
[1688320599991,0.3145,1907.6,1907.5,0.29457921]
[1688320600191,3.5223,1907.6,1907.5,0.29457921]
[1688320600401,11.5333,1907.6,1907.5,0.69419901]
[1688320601095,24.8213,1907.6,1907.5,0.00786286]
[1688320601497,11.5933,1907.6,1907.5,0.00786286]
[1688320601902,11.5933,1907.6,1907.5,0.93628825]
[1688320602502,11.5933,1907.6,1907.5,1.2230046]
[1688320602703,3.5223,1907.6,1907.5,1.2230046]
[1688320603014,0.94351,1907.9,1907.5,1.5375246]
[1688320603203,0.31447,1907.8,1907.6,4.08977412]
[1688320603401,0.7862,1908.0,1907.7,0.60119635]
[1688320603602,0.7862,1908.0,1907.9,8.071]
[1688320603807,0.3144,1908.2,1908.0,0.31443]
[1688320604008,0.78604,1908.2,1908.1,3.2078]
[1688320604209,0.78604,1908.2,1908.1,4.61507873]
[1688320604504,0.78604,1908.2,1908.1,1.37957508]
[1688320604905,0.78604,1908.2,1908.1,1.69399508]
[1688320606004,0.78604,1908.2,1908.1,4.90179508]
[1688320607418,0.78604,1908.2,1908.1,4.04759461]
[1688320607602,0.78604,1908.2,1908.1,4.33431096]
[1688320611316,0.78604,1908.2,1908.1,4.04759461]
[1688320611716,0.78604,1908.2,1908.1,4.33431096]
[1688320613114,0.78604,1908.2,1908.1,0.52537461]
[1688320613914,0.78604,1908.2,1908.1,1.12652096]
[1688320614113,0.78604,1908.2,1908.1,0.83980461]
[1688320614822,0.78604,1908.2,1908.1,0.52537461]
[1688320615212,0.78604,1908.2,1907.9,8.81911]
[1688320615414,0.78604,1908.2,1908.1,0.50639566]
[1688320615609,0.78604,1908.2,1908.0,0.31444]
[1688320615815,0.78604,1908.2,1908.1,0.50640774]
[1688320616822,0.78604,1908.2,1908.1,0.82083774]
[1688320617823,0.89104,1908.2,1908.1,0.50640774]
[1688320618034,8.96204,1908.2,1908.1,0.50640774]
[1688320618517,8.96204,1908.2,1907.8,0.31447]
[1688320618722,8.96204,1908.2,1908.1,0.53072027]
[1688320618915,12.16984,1908.2,1907.8,0.31447]
[1688320619111,12.16984,1908.2,1907.9,0.53073154]
[1688320619316,12.16984,1908.2,1907.8,0.31447]
[1688320619513,3.2078,1908.0,1907.8,0.31447]
[1688320619723,3.2078,1908.0,1907.9,0.5307428]
[1688320619925,11.59024,1908.0,1907.5,0.00786286]
[1688320620222,8.043,1907.6,1907.5,0.00786286]
[1688320620532,8.35751,1907.6,1907.5,0.00786286]
[1688320620721,11.56531,1907.6,1907.5,0.00786286]
[1688320621725,11.56531,1907.6,1907.5,0.54131397]
[1688320621926,0.31451,1907.6,1907.5,0.82803032]
[1688320622127,3.52231,1907.6,1907.5,0.82803032]
[1688320622422,19.64831,1907.6,1907.5,0.54131397]
[1688320622626,32.23198535,1907.6,1906.7,5.96746342]
[1688320622928,3.52242,1906.9,1906.8,0.50499578]
[1688320623125,3.52242,1906.9,1906.8,0.79171213]
[1688320623425,3.52242,1906.9,1906.8,1.10635213]
[1688320623625,0.31462,1906.9,1906.8,1.10635213]
[1688320624323,0.00786637,1907.0,1906.8,1.10635213]
[1688320624626,0.32247637,1907.0,1906.9,0.56748412]
[1688320624819,0.32247637,1907.0,1906.9,0.50760914]
[1688320625218,8.49847637,1907.0,1906.9,0.50760914]
[1688320625520,8.49847637,1907.0,1906.4,5.2433]
[1688320625720,0.31469,1906.5,1906.3,8.38572]
[1688320625915,0.31469,1906.5,1906.4,0.28671635]
[1688320626827,0.31469,1906.5,1906.3,0.73090279]
[1688320627327,0.31469,1906.5,1906.3,1.01761914]
[1688320628430,0.31469,1906.5,1906.3,0.70290914]
[1688320628823,0.31469,1906.5,1906.3,0.41619279]
[1688320628824,3.2078,1906.4,1906.3,0.41619279]
[1688320629022,3.5225,1906.4,1906.3,0.41619279]
[1688320629225,3.5225,1906.4,1906.2,0.31473]
[1688320629418,0.3147,1906.4,1906.2,1.16893047]
[1688320630127,0.3147,1906.4,1906.3,0.35583973]
[1688320630522,0.78676,1906.5,1906.3,0.35583973]
[1688320630718,4.15187,1906.7,1906.5,0.31468]
[1688320630927,0.94407,1906.7,1906.5,0.88216412]
[1688320631135,0.94407,1906.7,1906.6,0.62076424]
[1688320631333,0.94407,1906.7,1906.6,0.93543424]
[1688320631629,0.94407,1906.7,1906.6,0.33404789]
[1688320632128,0.94407,1906.7,1906.4,0.78671]
[1688320632333,4.15187,1906.7,1906.4,0.78671]
[1688320632731,0.94407,1906.7,1906.4,0.78671]
[1688320632936,0.94407,1906.7,1906.5,0.28671635]
[1688320633227,0.94407,1906.7,1906.5,11.88019635]
[1688320633420,0.78666,1906.9,1906.6,13.033]
[1688320633621,0.95181637,1907.0,1906.9,0.31462]
[1688320633931,0.95181637,1907.0,1906.7,0.94386]
[1688320634227,9.01981637,1907.0,1906.5,0.31463]
[1688320634633,0.31463,1906.8,1906.6,0.88214412]
[1688320634826,0.31463,1906.8,1906.7,0.28671635]
[1688320635135,0.31463,1906.8,1906.6,4.08994412]
[1688320635327,0.31463,1906.8,1906.7,0.28671635]
[1688320635526,0.78659,1906.9,1906.7,0.60136635]
[1688320635732,0.32246637,1907.0,1906.8,11.80828412]
[1688320636030,0.32246637,1907.0,1906.9,0.60133635]
[1688320639039,0.32246637,1907.0,1906.9,8.62333635]
[1688320639040,0.00786637,1907.0,1906.9,8.62333635]
[1688320639238,0.31453,1907.4,1907.0,0.56748412]
[1688320639435,0.31453,1907.4,1907.3,3.2078]
[1688320639629,0.94358,1907.7,1907.3,3.80906635]
[1688320639630,0.31448,1907.7,1907.3,3.80906635]
[1688320639834,0.31448,1907.7,1907.4,0.56748412]
[1688320640033,8.38548,1907.7,1907.4,0.31452]
[1688320640233,8.39334349,1907.7,1907.4,0.00786349]
[1688320640634,8.39334349,1907.7,1907.4,0.88988761]
[1688320641037,8.39334349,1907.7,1907.5,0.28671635]
[1688320641245,8.39334349,1907.7,1907.6,0.56748412]
[1688320641246,0.00786349,1907.7,1907.6,0.56748412]
[1688320641444,0.32235349,1907.7,1907.6,0.88199412]
[1688320642833,0.00786349,1907.7,1907.6,0.88199412]
[1688320643038,0.00786349,1907.7,1907.6,8.95299412]
[1688320643334,0.14851781,1907.7,1907.6,8.95299412]
[1688320643735,0.08371781,1907.7,1907.6,8.95299412]
[1688320643941,14.94031,1908.2,1907.7,5.0]
[1688320644136,2.28060055,1908.3,1908.1,0.31442]
[1688320644341,0.31439,1908.3,1908.2,0.60111635]
[1688320645444,0.66132794,1908.3,1908.2,0.60111635]
[1688320645641,0.31439,1908.3,1908.2,0.60111635]
[1688320645839,0.66131684,1908.3,1908.2,0.60111635]
[1688320646038,0.66131684,1908.3,1908.1,0.88190412]
[1688320646545,0.66131684,1908.3,1908.1,0.31442]
[1688320647147,0.66131684,1908.3,1908.1,0.60113635]
[1688320647847,8.043,1908.2,1907.9,0.31445]
[1688320648053,0.31442,1908.1,1907.9,0.31445]
[1688320648344,0.24053466,1908.0,1907.9,0.31445]
[1688320648539,0.55497466,1908.0,1907.9,0.31445]
[1688320648935,0.24053466,1908.0,1907.9,0.60116635]
[1688320649137,0.24053466,1908.0,1907.9,3.80896635]
[1688320649343,0.55497466,1908.0,1907.9,3.80896635]
[1688320651747,0.24053466,1908.0,1907.9,3.80896635]
[1688320654250,0.55497466,1908.0,1907.9,0.31445]
[1688320654453,0.55497466,1908.0,1907.8,0.78607]
[1688320655449,0.55497466,1908.0,1907.9,0.28671635]
[1688320655652,0.55497466,1908.0,1907.9,0.60116635]
[1688320655952,0.24053466,1908.0,1907.9,1.16865047]
[1688320656146,0.24053466,1908.0,1907.9,12.39445047]
[1688320656346,0.31441,1908.2,1907.9,12.39445047]
[1688320657153,0.31441,1908.2,1907.9,4.37645047]
[1688320657754,0.31441,1908.2,1907.8,0.78607]
[1688320657755,0.31445,1907.9,1907.8,0.78607]
[1688320657945,8.85714,1908.0,1907.8,0.78607]
[1688320657946,8.85714,1908.0,1907.8,1.64027047]
[1688320658550,0.78614,1908.0,1907.8,1.64027047]
[1688320658854,0.78614,1908.0,1907.8,4.84807047]
[1688320659649,0.95111061,1908.4,1907.8,9.84807047]
[1688320659863,0.31439,1908.3,1908.2,3.52221]
[1688320660050,0.31439,1908.3,1908.2,4.37641047]
[1688320661050,0.95111061,1908.4,1908.2,12.40941047]
[1688320661051,0.00786061,1908.4,1908.2,12.40941047]
[1688320661253,0.32224061,1908.4,1908.2,12.40941047]
[1688320661462,0.38914784,1908.3,1908.2,12.40941047]
[1688320661958,0.32224061,1908.4,1908.2,12.40941047]
[1688320662150,0.32224061,1908.4,1908.3,8.056]
[1688320662457,0.32224061,1908.4,1908.3,8.37039]
[1688320663951,0.00786061,1908.4,1908.3,8.37039]
[1688320664858,0.32223061,1908.4,1908.3,0.31439]
[1688320665757,0.00786061,1908.4,1908.3,8.38539]
[1688320668458,0.32223061,1908.4,1908.3,0.31439]
[1688320668655,0.00786061,1908.4,1908.3,0.31439]
[1688320668859,0.00786061,1908.4,1908.3,8.34239]
[1688320670260,0.00786061,1908.4,1908.3,13.34239]
[1688320670570,0.78585,1908.7,1908.4,0.56748412]
[1688320670765,0.78585,1908.7,1908.6,8.071]
[1688320670953,0.31433,1908.8,1908.6,8.38534]
[1688320671158,1.36769907,1908.9,1908.7,8.88220047]
[1688320671354,1.36769907,1908.9,1908.8,0.31431]
[1688320672256,0.943,1908.9,1908.8,0.31431]
[1688320672762,0.943,1908.9,1908.8,0.60102635]
[1688320673266,0.943,1908.9,1908.8,0.31431]
[1688320674357,0.85969035,1908.9,1908.8,0.31431]
[1688320674662,4.06749035,1908.9,1908.7,0.79362813]
[1688320675354,0.5140768,1908.8,1908.7,0.79362813]
[1688320675554,0.31431,1908.8,1908.7,1.08034448]
[1688320676261,0.41931,1908.8,1908.7,0.00785813]
[1688320676459,2.27066663,1908.8,1908.7,0.00785813]
[1688320676864,2.16566663,1908.8,1908.7,0.00785813]
[1688320677558,2.27066663,1908.8,1908.7,0.00785813]
[1688320678366,11.61896719,1908.8,1908.1,12.9822]
[1688320678565,3.2078,1908.4,1908.1,0.31442]
[1688320678765,0.31439,1908.3,1908.1,0.31442]
[1688320678961,0.47883387,1908.3,1908.2,0.28671635]
[1688320679161,0.47883387,1908.3,1908.2,0.60112635]
[1688320680466,0.47883387,1908.3,1908.2,8.65712635]
[1688320680768,0.16444387,1908.3,1908.2,9.22461047]
[1688320680971,1.66707767,1908.5,1908.2,9.22461047]
[1688320681169,1.66707767,1908.5,1908.4,8.34737]
[1688320681669,5.05052799,1908.5,1908.4,8.34737]
[1688320681861,14.92075505,1908.5,1908.4,0.31437]
[1688320682264,12.89162961,1908.5,1908.4,0.31437]
[1688320683273,14.924551,1908.5,1908.4,0.31437]
[1688320683679,12.89162961,1908.5,1908.4,0.31437]
[1688320683866,14.92481216,1908.5,1908.4,0.31437]
[1688320684168,17.63031275,1908.5,1908.4,0.31437]
[1688320684362,15.5971302,1908.5,1908.4,0.31437]
[1688320684972,3.01987059,1908.5,1908.4,0.31437]
[1688320685368,15.5971302,1908.5,1908.4,0.31437]
[1688320685976,15.5971302,1908.5,1908.3,5.90194]
[1688320686172,2.03526649,1908.4,1908.3,5.90194]
[1688320686381,2.34963649,1908.4,1908.3,5.90194]
[1688320686574,14.9268961,1908.4,1908.3,5.90194]
[1688320686771,12.89162961,1908.4,1908.3,5.90194]
[1688320686974,3.01987059,1908.4,1908.3,5.90194]
[1688320687672,0.31437,1908.4,1908.3,5.90194]
[1688320687876,3.01987059,1908.4,1908.3,5.90194]
[1688320688265,15.5971302,1908.4,1908.3,5.90194]
[1688320690281,12.89162961,1908.4,1908.3,5.90194]
[1688320690479,15.97231969,1908.4,1908.3,5.90194]
[1688320690680,15.65794969,1908.4,1908.3,5.90194]
[1688320690983,15.97231969,1908.4,1908.3,5.90194]
[1688320691575,15.97242372,1908.4,1908.3,5.90194]
[1688320692274,13.25633331,1908.4,1908.3,5.90194]
[1688320692470,0.67896967,1908.4,1908.3,5.90194]
[1688320693488,3.39535163,1908.4,1908.3,5.90194]
[1688320694576,0.67896967,1908.4,1908.3,5.90194]
[1688320694774,3.3958195,1908.4,1908.3,5.90194]
[1688320694982,3.0814495,1908.4,1908.3,5.90194]
[1688320695182,2.40235852,1908.4,1908.3,5.90194]
[1688320695386,2.71684983,1908.5,1908.4,5.125]
[1688320695586,2.71684983,1908.5,1908.4,13.78417]
[1688320695780,2.71684983,1908.5,1908.4,14.63837047]
[1688320699684,2.71684983,1908.5,1908.4,13.78417]
[1688320700084,2.71684983,1908.5,1908.4,14.07088635]
[1688320700285,3.66034111,1908.6,1908.4,14.07088635]
[1688320700491,3.66034111,1908.6,1908.5,5.095]
[1688320700691,3.66034111,1908.6,1908.5,5.40936]
[1688320701696,3.66034111,1908.6,1908.5,5.97684412]
[1688320701882,3.34600111,1908.6,1908.5,5.97684412]
[1688320702889,3.74876527,1908.6,1908.5,5.97684412]
[1688320703291,4.06310527,1908.6,1908.5,5.97684412]
[1688320704194,0.71710416,1908.6,1908.5,5.97684412]
[1688320704389,0.40276416,1908.6,1908.5,5.97684412]
[1688320704592,3.80219825,1908.6,1908.5,5.97684412]
[1688320705601,3.1439933,1908.6,1908.5,11.08584412]
[1688320707889,2.71970011,1908.7,1908.6,5.0]
[1688320708189,3.02249187,1908.7,1908.6,14.50434047]
[1688320708589,0.30279176,1908.7,1908.6,14.50434047]
[1688320708790,3.02249187,1908.7,1908.6,14.50434047]
[1688320710191,0.30279176,1908.7,1908.6,14.50434047]
[1688320710995,9.176e-05,1908.7,1908.6,14.50434047]
[1688320711191,0.22705438,1908.7,1908.6,14.50434047]
[1688320711392,0.21296317,1908.7,1908.6,14.50434047]
[1688320711698,0.24668955,1908.7,1908.6,14.50434047]
[1688320711891,1.39278233,1908.7,1908.6,20.29414152]
[1688320712199,3.40748327,1909.0,1908.8,5.31431]
[1688320712200,2.71799197,1908.9,1908.8,5.31431]
[1688320712398,2.7258501,1909.0,1908.8,14.47131047]
[1688320712592,2.7258501,1909.0,1908.8,9.37631047]
[1688320712898,2.7172328,1909.4,1909.0,51.251]
[1688320713095,3.39676216,1909.5,1909.3,13.4318]
[1688320713395,3.39676216,1909.5,1909.4,10.82392635]
[1688320713596,3.39676216,1909.5,1909.4,6.30541047]
[1688320714201,0.00785567,1909.6,1909.4,6.30541047]
[1688320714495,0.00785567,1909.6,1909.4,1.16841047]
[1688320714899,0.00785567,1909.6,1909.5,8.7355806]
[1688320715101,27.20903,1910.0,1909.6,10.84148412]
[1688320715102,31.29359549,1910.0,1909.6,10.84148412]
[1688320715299,31.29359549,1910.0,1909.9,5.086]
[1688320715300,12.09436549,1910.0,1909.9,5.086]
[1688320715491,7.29236549,1910.0,1909.9,5.40013]
[1688320715696,20.17619048,1910.0,1909.9,5.68684635]
[1688320716198,16.09162499,1910.0,1909.9,5.68684635]
[1688320716398,16.09162499,1910.0,1909.9,5.40013]
[1688320716598,3.62691,1910.0,1909.9,5.086]
[1688320716796,3.62691,1910.0,1909.9,5.40013]
[1688320717187,0.41911,1910.0,1909.9,5.40013]
[1688320717393,0.41911,1910.0,1909.9,5.68684635]
[1688320718997,0.41911,1910.0,1909.9,5.44213]
[1688320718998,3.62691,1910.0,1909.9,5.44213]
[1688320720003,3.52191,1910.0,1909.9,4.974]
[1688320720206,16.09163302,1910.0,1909.7,5.137]
[1688320720506,3.3128,1909.8,1909.7,5.137]
[1688320720703,3.62694,1909.8,1909.7,5.137]
[1688320720896,4.0880642,1909.8,1909.7,5.137]
[1688320721298,4.0880642,1909.8,1909.7,4.0409]